bitfinex-derivatives/quotes_BNBF0:USTF0_20250810
["timestamp","ask_amount","ask_price","bid_price","bid_amount"]
[1754861905960,0.77034012,802.21,800.46,1.676679]
[1754861906160,0.77034012,802.2,800.47,1.676679]
[1754861906357,0.77034012,802.19,800.53,1.676679]
[1754861906561,0.77034012,802.18,800.52,1.676679]
[1754861906761,0.77034012,802.17,800.52,1.676679]
[1754861907057,0.77034012,802.16,800.52,1.676679]
[1754861907356,0.77034012,802.15,800.6,1.676679]
[1754861907562,0.77034012,802.14,800.61,1.676679]
[1754861907762,0.77034012,802.13,800.61,1.676679]
[1754861907960,0.77034012,802.12,800.61,1.676679]
[1754861908260,0.77034012,802.11,800.7,1.676679]
[1754861908460,0.77034012,802.1,800.7,1.676679]
[1754861908659,0.77034012,802.09,800.7,1.676679]
[1754861908861,0.77034012,802.08,800.7,1.676679]
[1754861909056,0.77034012,802.07,800.7,1.676679]
[1754861909258,0.77034012,802.06,800.71,1.676679]
[1754861909561,0.77034012,802.06,799.96,2.8023031]
[1754861909562,0.77034012,802.05,800.81,1.676679]
[1754861909760,0.77034012,802.04,800.81,1.676679]
[1754861910061,0.83540449,802.36,800.84,1.676679]
[1754861910258,0.77496909,802.35,800.98,1.676679]
[1754861910558,0.77496909,802.34,800.98,1.676679]
[1754861910762,0.77496909,802.33,800.98,1.676679]
[1754861910962,0.77496909,802.32,800.98,1.676679]
[1754861911262,0.77496909,802.31,800.99,1.676679]
[1754861911458,0.77496909,802.3,801.11,1.676679]
[1754861911758,0.77496909,802.29,801.11,1.676679]
[1754861911961,0.77496909,802.28,801.11,1.676679]
[1754861912157,0.77496909,802.27,801.11,1.676679]
[1754861912363,0.77496909,802.26,801.17,1.676679]
[1754861912558,0.77496909,802.25,801.17,1.676679]
[1754861912763,0.77496909,802.24,801.21,1.676679]
[1754861912960,0.77496909,802.23,801.21,1.676679]
[1754861913165,0.77496909,802.22,801.21,1.676679]
[1754861913366,0.77496909,802.21,801.23,1.676679]
[1754861913564,0.77496909,802.2,801.26,1.676679]
[1754861913865,0.77496909,802.19,801.26,1.676679]
[1754861914063,0.83540449,802.19,801.22,1.676679]
[1754861914267,0.77496909,802.18,801.22,1.676679]
[1754861914468,0.83540449,802.18,801.23,1.676679]
[1754861914667,0.77496909,802.17,801.23,1.676679]
[1754861914868,0.77496909,802.16,801.23,1.676679]
[1754861915168,0.77496909,802.15,801.25,1.676679]
[1754861915368,0.77496909,802.14,801.26,1.676679]
[1754861915569,0.77496909,802.13,801.26,1.676679]
[1754861915865,0.77496909,802.12,801.26,1.676679]
[1754861916065,0.77496909,802.11,801.26,1.676679]
[1754861916270,0.77496909,802.1,801.27,1.676679]
[1754861916567,0.77496909,802.09,801.32,1.676679]
[1754861916765,0.77496909,802.08,801.27,1.676679]
[1754861916968,0.77496909,802.07,801.27,1.676679]
[1754861917169,0.77496909,802.06,801.27,1.676679]
[1754861917368,0.77496909,802.05,801.27,1.676679]
[1754861917569,0.77496909,802.04,801.27,1.676679]
[1754861917770,0.77496909,802.03,801.27,1.676679]
[1754861918070,0.77496909,802.02,801.27,1.676679]
[1754861918270,0.77496909,802.01,801.27,1.676679]
[1754861918469,0.77496909,802.0,801.27,1.676679]
[1754861918669,0.77496909,801.99,801.27,1.676679]
[1754861918878,0.77496909,801.98,801.27,1.676679]
[1754861919079,0.77496909,801.97,801.27,1.676679]
[1754861919381,0.77496909,801.96,801.27,1.676679]
[1754861919575,0.77496909,801.95,801.27,1.676679]
[1754861919778,0.77496909,801.94,801.27,1.676679]
[1754861919977,0.77496909,801.93,801.26,1.676679]
[1754861920180,0.77496909,801.92,801.26,1.676679]
[1754861920379,0.77496909,801.91,801.26,1.676679]
[1754861920578,0.77496909,801.9,801.26,1.676679]
[1754861920778,0.83540449,802.15,801.27,1.676679]
[1754861920978,0.77961368,802.14,801.28,1.676679]
[1754861921178,0.77961368,802.13,801.28,1.676679]
[1754861921378,0.77961368,802.12,801.28,1.676679]
[1754861921576,0.77961368,802.11,801.28,1.676679]
[1754861921777,0.77961368,802.1,801.28,1.676679]
[1754861921982,0.77961368,802.09,801.28,1.676679]
[1754861922179,0.77961368,802.08,801.28,1.676679]
[1754861922380,0.77961368,802.07,801.28,1.676679]
[1754861922580,0.77961368,802.06,801.28,1.676679]
[1754861922780,0.77961368,802.05,801.28,1.676679]
[1754861922979,0.77961368,802.04,801.16,1.676679]
[1754861923180,0.77961368,802.03,801.16,1.676679]
[1754861923385,0.77961368,802.02,801.16,1.676679]
[1754861923579,0.77961368,802.01,801.16,1.676679]
[1754861923783,0.77961368,802.0,801.16,1.676679]
[1754861923981,0.77961368,801.99,801.16,1.676679]
[1754861924184,0.77961368,801.98,801.13,1.676679]
[1754861924381,0.77961368,801.97,801.13,1.676679]
[1754861924584,0.77961368,801.96,801.11,1.676679]
[1754861924781,0.77961368,801.95,801.11,1.676679]
[1754861924979,0.77961368,801.94,801.11,1.676679]
[1754861925280,0.77961368,801.93,801.11,1.676679]
[1754861925479,0.77961368,801.92,801.11,1.676679]
[1754861925680,0.77961368,801.91,801.11,1.676679]
[1754861925880,0.77961368,801.9,801.11,1.676679]
[1754861926079,0.77961368,801.89,801.11,1.676679]
[1754861926285,0.77961368,801.88,801.11,1.676679]
[1754861926482,0.77961368,801.87,801.11,1.676679]
[1754861926681,0.77961368,801.86,801.12,1.676679]
[1754861926879,0.83540449,802.18,801.11,1.676679]
[1754861927080,0.77944867,802.17,801.11,1.676679]
[1754861927285,0.83540449,802.18,801.11,1.676679]
[1754861927286,0.77944867,802.16,801.11,1.676679]
[1754861927584,0.77944867,802.15,801.11,1.676679]
[1754861927883,0.77944867,802.15,800.38,2.8023031]
[1754861927884,0.77944867,802.14,801.09,1.676679]
[1754861928083,0.77944867,802.13,801.09,1.676679]
[1754861928287,0.77944867,802.12,801.09,1.676679]
[1754861928584,0.77944867,802.11,801.09,1.676679]
[1754861928785,0.77944867,802.1,801.08,1.676679]
[1754861929084,0.77944867,802.09,801.08,1.676679]
[1754861929280,0.77944867,802.08,801.08,1.676679]
[1754861929480,0.77944867,802.07,801.08,1.676679]
[1754861929685,0.77944867,802.06,801.08,1.676679]
[1754861929885,0.77944867,802.05,801.08,1.676679]
[1754861930082,0.77944867,802.04,801.08,1.676679]
[1754861930281,0.77944867,802.03,801.09,1.676679]
[1754861930486,0.77944867,802.02,801.09,1.676679]
[1754861930686,0.77944867,802.01,801.09,1.676679]
[1754861930885,0.77944867,802.0,801.09,1.676679]
[1754861931083,0.77944867,801.99,801.09,1.676679]
[1754861931289,0.77944867,801.98,801.09,1.676679]
[1754861931484,0.77944867,801.97,801.08,1.676679]
[1754861931789,0.77944867,801.96,801.08,1.676679]
[1754861931983,0.77944867,801.95,801.08,1.676679]
[1754861932188,0.77944867,801.94,801.05,1.676679]
[1754861932486,0.77944867,801.93,801.05,1.676679]
[1754861932686,0.77944867,801.92,801.05,1.676679]
[1754861932884,0.77944867,801.91,801.05,1.676679]
[1754861933188,0.77944867,801.9,801.04,1.676679]
[1754861933389,0.77944867,801.89,801.04,1.676679]
[1754861933586,0.77944867,801.88,801.04,1.676679]
[1754861933889,0.77944867,801.87,800.92,1.676679]
[1754861934086,0.77944867,801.86,800.93,1.676679]
[1754861934286,0.77944867,801.85,800.93,1.676679]
[1754861934488,0.77944867,801.84,800.93,1.676679]
[1754861934687,0.77944867,801.83,800.93,1.676679]
[1754861934885,0.77944867,801.82,800.93,1.676679]
[1754861935186,0.77944867,801.81,800.92,1.676679]
[1754861935489,0.77944867,801.8,800.91,1.676679]
[1754861935686,0.77944867,801.79,800.91,1.676679]
[1754861935888,0.77917234,801.78,800.9,1.676679]
[1754861936091,0.83540449,802.18,800.9,1.676679]
[1754861936287,0.77912169,802.17,800.9,1.676679]
[1754861936488,0.77912169,802.16,800.9,1.676679]
[1754861936692,0.77912169,802.15,800.9,1.676679]
[1754861936892,0.77912169,802.14,800.9,1.676679]
[1754861937188,0.77912169,802.13,800.9,1.676679]
[1754861937391,0.77912169,802.12,800.9,1.676679]
[1754861937591,0.77912169,802.11,800.92,1.676679]
[1754861937792,0.77912169,802.1,800.92,1.676679]
[1754861937990,0.77912169,802.09,800.92,1.676679]
[1754861938290,0.77912169,802.08,800.92,1.676679]
[1754861938593,0.77912169,802.07,800.92,1.676679]
[1754861938792,0.77912169,802.06,800.92,1.676679]
[1754861938993,0.77912169,802.05,800.9,1.676679]
[1754861939194,0.77912169,802.04,800.9,1.676679]
[1754861939387,0.77912169,802.03,800.9,1.676679]
[1754861939590,0.77912169,802.02,800.91,1.676679]
[1754861939790,0.77912169,802.01,800.92,1.676679]
[1754861939990,0.77912169,802.0,800.92,1.676679]
[1754861940193,0.77912169,801.99,800.92,1.676679]
[1754861940391,0.77912169,801.98,800.92,1.676679]
[1754861940593,0.77912169,801.97,800.92,1.676679]
[1754861940790,0.77912169,801.96,800.92,1.676679]
[1754861940997,0.77912169,801.95,800.92,1.676679]
[1754861941196,0.77912169,801.94,800.91,1.676679]
[1754861941493,0.77912169,801.93,800.92,1.676679]
[1754861941695,0.77912169,801.92,800.92,1.676679]
[1754861941892,0.77912169,801.91,800.92,1.676679]
[1754861942193,0.77912169,801.9,800.92,1.676679]
[1754861942393,0.77912169,801.89,800.92,1.676679]
[1754861942591,0.77912169,801.88,800.92,1.676679]
[1754861942797,0.77912169,801.87,800.92,1.676679]
[1754861942993,0.77912169,801.86,800.92,1.676679]
[1754861943293,0.77912169,801.85,800.92,1.676679]
[1754861943498,0.77912169,801.84,800.92,1.676679]
[1754861943694,0.77912169,801.83,801.01,1.676679]
[1754861943894,0.77912169,801.82,801.01,1.676679]
[1754861944197,0.77912169,801.81,800.93,1.676679]
[1754861944399,0.77912169,801.8,800.93,1.676679]
[1754861944593,0.77912169,801.79,800.93,1.676679]
[1754861944792,0.77912169,801.78,800.93,1.676679]
[1754861944996,0.77912169,801.77,800.93,1.676679]
[1754861945295,0.77912169,801.76,800.97,1.676679]
[1754861945493,0.77912169,801.75,800.97,1.676679]
[1754861945793,0.77912169,801.74,800.97,1.676679]
[1754861945992,0.77912169,801.73,800.97,1.676679]
[1754861946197,0.77912169,801.72,800.97,1.676679]
[1754861946497,0.83540449,802.03,800.97,1.676679]
[1754861946694,0.77892139,802.02,800.97,1.676679]
[1754861946898,0.77892139,802.01,800.97,1.676679]
[1754861947194,0.77892139,802.0,800.97,1.676679]
[1754861947394,0.77892139,801.99,800.98,1.676679]
[1754861947694,0.77892139,801.98,800.98,1.676679]
[1754861947898,0.77892139,801.97,800.98,1.676679]
[1754861948199,0.77892139,801.96,800.98,1.676679]
[1754861948494,0.77892139,801.95,800.98,1.676679]
[1754861948699,0.77892139,801.94,800.98,1.676679]
[1754861948901,0.77892139,801.93,801.06,1.676679]
[1754861949101,0.77892139,801.92,801.06,1.676679]
[1754861949296,0.77892139,801.91,801.07,1.676679]
[1754861949596,0.77892139,801.9,801.08,1.676679]
[1754861949796,0.77892139,801.89,800.71,1.676679]
[1754861950001,0.83540449,802.3,801.05,1.676679]
[1754861950201,0.77922587,802.29,801.06,1.676679]
[1754861950499,0.77922587,802.28,801.05,1.676679]
[1754861950702,0.77922587,802.27,801.07,1.676679]
[1754861950902,0.77922587,802.26,801.07,1.676679]
[1754861951198,0.77922587,802.25,801.07,1.676679]
[1754861951501,0.77922587,802.24,801.07,1.676679]
[1754861951702,0.77922587,802.23,801.07,1.676679]
[1754861951997,0.77922587,802.22,801.07,1.676679]
[1754861952297,0.77922587,802.21,801.07,1.676679]
[1754861952503,0.77922587,802.2,801.18,1.676679]
[1754861952698,0.77922587,802.19,801.18,1.676679]
[1754861952903,0.77922587,802.18,801.16,1.676679]
[1754861953204,0.77922587,802.17,801.15,1.676679]
[1754861953402,0.77922587,802.16,801.15,1.676679]
[1754861953602,0.77922587,802.15,801.15,1.676679]
[1754861953898,0.77922587,802.14,801.15,1.676679]
[1754861954103,0.77922587,802.13,801.23,1.676679]
[1754861954399,0.77922587,802.12,801.26,1.676679]
[1754861954603,0.77922587,802.11,801.26,1.676679]
[1754861954802,0.77922587,802.1,801.26,1.676679]
[1754861955002,0.77922587,802.09,801.26,1.676679]
[1754861955299,0.77922587,802.08,801.25,1.676679]
[1754861955497,0.77922587,802.07,801.25,1.676679]
[1754861955698,0.77922587,802.06,801.25,1.676679]
[1754861955897,0.83540449,802.39,801.25,1.676679]
[1754861956102,0.77878927,802.38,801.26,1.676679]
[1754861956401,0.77878927,802.37,801.26,1.676679]
[1754861956597,0.77878927,802.36,801.26,1.676679]
[1754861956798,0.77878927,802.35,801.26,1.676679]
[1754861956998,0.77878927,802.34,801.26,1.676679]
[1754861957203,0.77878927,802.33,801.26,1.676679]
[1754861957399,0.77878927,802.32,801.26,1.676679]
[1754861957703,0.77878927,802.31,801.26,1.676679]
[1754861957899,0.77878927,802.3,801.26,1.676679]
[1754861958098,0.77878927,802.29,801.26,1.676679]
[1754861958303,0.77878927,802.28,801.25,1.676679]
[1754861958603,0.77878927,802.27,801.25,1.676679]
[1754861958904,0.77878927,802.26,801.25,1.676679]
[1754861959104,0.77878927,802.25,801.25,1.676679]
[1754861959304,0.77878927,802.24,801.25,1.676679]
[1754861959503,0.77878927,802.23,801.25,1.676679]
[1754861959700,0.77878927,802.22,801.29,1.676679]
[1754861959904,0.77878927,802.21,801.29,1.676679]
[1754861960203,0.77878927,802.2,801.28,1.676679]
[1754861960402,0.77878927,802.19,801.28,1.676679]
[1754861960601,0.77878927,802.18,801.29,1.676679]
[1754861960805,0.77878927,802.17,801.29,1.676679]
[1754861961006,0.77878927,802.16,801.29,1.676679]
[1754861961206,0.77878927,802.15,801.29,1.676679]
[1754861961403,0.77878927,802.14,801.29,1.676679]
[1754861961603,0.77878927,802.13,801.29,1.676679]
[1754861961806,0.77878927,802.12,801.29,1.676679]
[1754861962007,0.77878927,802.11,801.29,1.676679]
[1754861962207,0.77878927,802.1,801.29,1.676679]
[1754861962404,0.77878927,802.09,801.31,1.676679]
[1754861962707,0.83540449,802.37,801.31,1.676679]
[1754861962908,1.61358175,802.36,801.34,1.676679]
[1754861963104,0.77817726,802.35,801.34,1.676679]
[1754861963406,0.77817726,802.34,801.34,1.676679]
[1754861963608,0.77817726,802.33,801.34,1.676679]
[1754861963907,0.77817726,802.32,801.34,1.676679]
[1754861964104,0.77817726,802.31,801.34,1.676679]
[1754861964304,0.77817726,802.3,801.34,1.676679]
[1754861964507,0.77817726,802.29,801.34,1.676679]
[1754861964802,0.77817726,802.28,801.34,1.676679]
[1754861965007,0.77817726,802.27,801.34,1.676679]
[1754861965209,0.77817726,802.26,801.34,1.676679]
[1754861965408,0.77817726,802.25,801.34,1.676679]
[1754861965704,0.77817726,802.24,801.34,1.676679]
[1754861965907,0.77817726,802.23,801.34,1.676679]
[1754861966104,0.77817726,802.22,801.34,1.676679]
[1754861966308,0.77817726,802.21,801.34,1.676679]
[1754861966605,0.77817726,802.2,801.34,1.676679]
[1754861966808,0.77817726,802.19,801.34,1.676679]
[1754861967004,0.77817726,802.18,801.34,1.676679]
[1754861967204,0.77817726,802.17,801.34,1.676679]
[1754861967408,0.77817726,802.16,801.34,1.676679]
[1754861967708,0.77817726,802.15,801.34,1.676679]
[1754861967904,0.77817726,802.14,801.34,1.676679]
[1754861968108,0.77817726,802.13,801.34,1.676679]
[1754861968305,0.77817726,802.12,801.33,1.676679]
[1754861968605,0.83540449,802.47,801.23,1.676679]
[1754861968807,0.7777891,802.46,801.23,1.676679]
[1754861969006,0.7777891,802.45,801.23,1.676679]
[1754861969305,0.7777891,802.44,801.22,1.676679]
[1754861969506,0.7777891,802.43,801.22,1.676679]
[1754861969709,0.7777891,802.42,801.22,1.676679]
[1754861969905,0.7777891,802.41,801.22,1.676679]
[1754861970108,0.7777891,802.4,801.22,1.676679]
[1754861970410,0.7777891,802.39,801.22,1.676679]
[1754861970606,0.7777891,802.38,801.22,1.676679]
[1754861970814,0.7777891,802.37,801.22,1.676679]
[1754861971008,0.7777891,802.36,801.22,1.676679]
[1754861971206,0.7777891,802.35,801.22,1.676679]
[1754861971508,0.7777891,802.34,801.22,1.676679]
[1754861971706,0.7777891,802.33,801.22,1.676679]
[1754861971910,0.7777891,802.32,801.22,1.676679]
[1754861972110,0.7777891,802.31,801.22,1.676679]
[1754861972311,0.7777891,802.3,801.22,1.676679]
[1754861972508,0.7777891,802.29,801.22,1.676679]
[1754861972708,0.7777891,802.28,801.22,1.676679]
[1754861973009,0.7777891,802.27,801.23,1.676679]
[1754861973207,0.7777891,802.26,801.23,1.676679]
[1754861973408,0.7777891,802.25,801.23,1.676679]
[1754861973608,0.7777891,802.24,801.23,1.676679]
[1754861973811,0.7777891,802.23,801.23,1.676679]
[1754861974011,0.7777891,802.22,801.23,1.676679]
[1754861974210,0.7777891,802.21,801.22,1.676679]
[1754861974409,0.7777891,802.2,801.22,1.676679]
[1754861974609,0.7777891,802.19,801.22,1.676679]
[1754861974808,0.7777891,802.18,801.22,1.676679]
[1754861975015,0.7777891,802.17,801.22,1.676679]
[1754861975210,0.7777891,802.16,801.22,1.676679]
[1754861975409,0.7777891,802.15,801.22,1.676679]
[1754861975615,0.83540449,802.58,801.12,1.676679]
[1754861975913,0.77733039,802.57,801.12,1.676679]
[1754861976113,0.77733039,802.56,801.12,1.676679]
[1754861976312,0.77733039,802.55,801.12,1.676679]
[1754861976513,0.77733039,802.54,801.12,1.676679]
[1754861976711,0.77733039,802.53,801.12,1.676679]
[1754861977011,0.77733039,802.52,801.12,1.676679]
[1754861977216,0.77733039,802.51,801.12,1.676679]
[1754861977413,0.77733039,802.5,801.12,1.676679]
[1754861977614,0.77733039,802.49,801.12,1.676679]
[1754861977817,0.77733039,802.48,801.12,1.676679]
[1754861978016,0.77733039,802.47,801.07,1.676679]
[1754861978213,0.77733039,802.46,801.07,1.676679]
[1754861978416,0.83540449,802.61,800.11,2.8023031]
[1754861978417,0.77733039,802.45,801.11,1.676679]
[1754861978615,0.77733039,802.44,801.09,1.676679]
[1754861978818,0.77733039,802.43,801.11,1.676679]
[1754861979017,1.1120284,802.96,799.74,0.21731121]
[1754861979018,0.77733039,802.42,801.12,1.676679]
[1754861979314,0.77733039,802.41,801.11,1.676679]
[1754861979515,0.77733039,802.4,801.11,1.676679]
[1754861979717,0.83540449,802.72,801.11,1.676679]
[1754861979718,0.77733039,802.39,801.11,1.676679]
[1754861979914,0.77733039,802.38,801.11,1.676679]
[1754861980218,0.77733039,802.37,801.1,1.676679]
[1754861980415,0.77733039,802.36,801.1,1.676679]
[1754861980615,0.77733039,802.35,801.1,1.676679]
[1754861980819,0.77733039,802.34,801.1,1.676679]
[1754861981016,0.77733039,802.33,801.1,1.676679]
[1754861981321,0.77733039,802.32,801.09,1.676679]
[1754861981520,0.77733039,802.31,801.09,1.676679]
[1754861981716,0.77733039,802.3,801.09,1.676679]
[1754861981916,0.77733039,802.29,801.09,1.676679]
[1754861982117,0.77733039,802.28,801.09,1.676679]
[1754861982316,0.77733039,802.27,801.08,1.676679]
[1754861982524,0.83540449,802.72,801.08,1.676679]
[1754861982720,0.77678326,802.71,801.08,1.676679]
[1754861983017,0.77678326,802.7,801.08,1.676679]
[1754861983218,0.77678326,802.69,801.07,1.676679]
[1754861983420,0.77678326,802.68,801.07,1.676679]
[1754861983618,0.77678326,802.67,801.07,1.676679]
[1754861983817,0.77678326,802.66,801.07,1.676679]
[1754861984018,0.77678326,802.65,801.07,1.676679]
[1754861984220,1.61218775,802.64,800.99,1.676679]
[1754861984421,0.77678326,802.63,800.99,1.676679]
[1754861984719,0.83540449,802.64,800.99,1.676679]
[1754861984720,0.77678326,802.62,800.99,1.676679]
[1754861984920,0.77678326,802.61,800.99,1.676679]
[1754861985215,0.77678326,802.6,800.98,1.676679]
[1754861985417,0.77678326,802.59,801.04,1.676679]
[1754861985718,0.83540449,802.62,801.04,1.676679]
[1754861985719,0.77678326,802.58,801.04,1.676679]
[1754861985922,0.77678326,802.57,801.04,1.676679]
[1754861986122,0.77678326,802.56,801.04,1.676679]
[1754861986324,0.77678326,802.55,801.03,1.676679]
[1754861986522,0.77678326,802.54,801.03,1.676679]
[1754861986723,0.77678326,802.53,800.98,1.676679]
[1754861986924,0.77678326,802.52,801.0,1.676679]
[1754861987224,0.77678326,802.51,800.99,1.676679]
[1754861987424,0.77678326,802.5,800.99,1.676679]
[1754861987625,0.83540449,802.76,800.99,1.676679]
[1754861987626,0.77678326,802.49,800.99,1.676679]
[1754861987821,0.77678326,802.48,800.99,1.676679]
[1754861988027,0.77678326,802.47,800.99,1.676679]
[1754861988328,0.77678326,802.46,801.03,1.676679]
[1754861988529,0.77678326,802.45,801.03,1.676679]
[1754861988726,0.77678326,802.44,801.03,1.676679]
[1754861989028,0.77678326,802.43,801.03,1.676679]
[1754861989223,0.83540449,802.73,801.02,1.676679]
[1754861989224,0.77678326,802.42,801.02,1.676679]
[1754861989427,0.77678326,802.41,801.02,1.676679]
[1754861989727,0.77678326,802.4,801.02,1.676679]
[1754861989927,0.77678326,802.39,801.02,1.676679]
[1754861990131,0.77678326,802.38,801.02,1.676679]
[1754861990330,0.77678326,802.37,801.01,1.676679]
[1754861990531,0.77678326,802.36,801.01,1.676679]
[1754861990729,0.77678326,802.35,801.01,1.676679]
[1754861991032,0.77678326,802.34,801.01,1.676679]
[1754861991231,0.77678326,802.33,801.0,1.676679]
[1754861991532,0.77678326,802.32,801.0,1.676679]
[1754861991731,0.77678326,802.31,801.0,1.676679]
[1754861991928,0.77678326,802.3,801.0,1.676679]
[1754861992133,0.77678326,802.29,800.99,1.676679]
[1754861992432,0.77678326,802.28,800.95,1.676679]
[1754861992631,0.83540449,802.76,800.95,1.676679]
[1754861992827,0.77601023,802.75,800.95,1.676679]
[1754861993027,0.77601023,802.74,800.95,1.676679]
[1754861993226,0.77601023,802.73,800.95,1.676679]
[1754861993430,0.77601023,802.72,800.95,1.676679]
[1754861993632,0.77601023,802.71,800.95,1.676679]
[1754861993831,0.77601023,802.7,800.95,1.676679]
[1754861994029,0.77601023,802.69,800.95,1.676679]
[1754861994233,0.77601023,802.68,801.03,1.676679]
[1754861994534,0.77601023,802.67,801.03,1.676679]
[1754861994833,0.77601023,802.66,801.03,1.676679]
[1754861995033,0.77601023,802.65,801.03,1.676679]
[1754861995229,0.77601023,802.64,801.03,1.676679]
[1754861995432,0.77601023,802.63,801.03,1.676679]
[1754861995635,0.77601023,802.62,801.03,1.676679]
[1754861995834,0.77601023,802.61,801.03,1.676679]
[1754861996034,0.77601023,802.6,801.03,1.676679]
[1754861996232,0.77601023,802.59,801.04,1.676679]
[1754861996435,0.77601023,802.58,801.09,1.676679]
[1754861996736,0.77601023,802.57,801.17,1.676679]
[1754861997049,0.77601023,802.56,801.17,1.676679]
[1754861997235,0.77601023,802.55,801.17,1.676679]
[1754861997433,0.77601023,802.54,801.17,1.676679]
[1754861997636,0.77601023,802.53,801.17,1.676679]
[1754861997838,0.77601023,802.52,801.17,1.676679]
[1754861998034,0.77601023,802.51,801.17,1.676679]
[1754861998232,0.77601023,802.5,801.18,1.676679]
[1754861998438,0.77601023,802.49,801.18,1.676679]
[1754861998637,0.77601023,802.48,801.18,1.676679]
[1754861998938,0.77601023,802.47,801.18,1.676679]
[1754861999137,0.77601023,802.46,801.18,1.676679]
[1754861999338,0.77601023,802.45,801.18,1.676679]
[1754861999633,0.77601023,802.44,801.18,1.676679]
[1754861999836,0.77601023,802.43,801.18,1.676679]
[1754862000138,0.77601023,802.42,801.18,1.676679]
[1754862000336,0.83540449,803.05,801.37,1.676679]
[1754862000539,0.77655362,802.98,801.39,1.676679]
[1754862000737,0.77655362,802.97,801.38,1.676679]
[1754862001042,0.77655362,802.96,801.41,1.676679]
[1754862001239,0.77655362,802.95,801.42,1.676679]
[1754862001439,0.77655362,802.94,801.3,1.676679]
[1754862001738,0.83540449,802.88,801.22,1.676679]
[1754862001942,0.83540449,802.81,801.15,1.676679]
[1754862002142,1.61195811,802.8,801.15,1.676679]
[1754862002344,1.61195811,802.79,801.16,1.676679]
[1754862002543,0.77655362,802.78,801.17,1.676679]
[1754862002743,0.77655362,802.77,801.17,1.676679]
[1754862002943,0.77655362,802.76,801.17,1.676679]
[1754862003140,0.77655362,802.75,801.18,1.676679]
[1754862003339,0.77655362,802.74,801.18,1.676679]
[1754862003639,0.77655362,802.73,801.17,1.676679]
[1754862003844,0.77655362,802.72,801.16,1.676679]
[1754862004143,0.77655362,802.71,801.18,1.676679]
[1754862004343,0.77655362,802.7,801.18,1.676679]
[1754862004545,0.77655362,802.69,801.18,1.676679]
[1754862004842,0.77655362,802.68,801.17,1.676679]
[1754862005045,0.77655362,802.67,801.17,1.676679]
[1754862005342,0.77655362,802.67,801.19,1.676679]
[1754862005538,0.83540449,802.64,801.19,1.676679]
[1754862005740,0.83540449,802.62,801.16,1.676679]
[1754862005940,0.83540449,802.57,801.06,1.676679]
[1754862006146,0.77655362,802.56,801.08,1.676679]
[1754862007240,1.61195811,802.56,801.1,1.676679]
[1754862007444,0.77655362,802.55,801.1,1.676679]
[1754862007939,1.61195811,802.55,801.12,1.676679]
[1754862008142,0.77655362,802.54,801.12,1.676679]
[1754862008341,0.77655362,802.54,801.14,1.676679]
[1754862009244,1.61195811,802.54,801.15,1.676679]
[1754862009447,0.77655362,802.53,801.15,1.676679]
[1754862010349,0.77655362,802.53,801.16,1.676679]
[1754862010946,1.61195811,802.53,801.17,1.676679]
[1754862011149,1.61195811,802.52,801.19,1.676679]
[1754862011445,0.77655362,802.51,801.19,1.676679]
[1754862014050,0.77655362,802.51,801.2,1.676679]
[1754862014754,1.61195811,802.51,801.22,1.676679]
[1754862015051,0.77655362,802.5,801.22,1.676679]
[1754862015252,1.61195811,802.5,801.23,1.676679]
[1754862015450,0.77655362,802.49,801.23,1.676679]
[1754862015750,1.61195811,802.49,801.27,1.676679]
[1754862015955,0.83540449,802.41,801.4,1.676679]
[1754862016155,0.77655362,802.4,801.4,1.676679]
[1754862017653,0.77655362,802.4,801.34,1.676679]
[1754862017850,0.77655362,802.39,801.35,1.676679]
[1754862018051,0.77655362,802.38,801.35,1.676679]
[1754862018250,0.77655362,802.37,801.35,1.676679]
[1754862018454,0.77655362,802.36,801.35,1.676679]
[1754862018651,0.77655362,802.35,801.35,1.676679]
[1754862018851,0.77655362,802.34,801.35,1.676679]
[1754862019051,0.77655362,802.33,801.35,1.676679]
[1754862019251,0.77655362,802.32,801.35,1.676679]
[1754862019457,0.77655362,802.31,801.35,1.676679]
[1754862019656,0.77655362,802.3,801.35,1.676679]
[1754862019855,0.77655362,802.29,801.35,1.676679]
[1754862020053,0.77655362,802.28,801.35,1.676679]
[1754862020251,0.77655362,802.27,801.35,1.676679]
[1754862020455,0.77655362,802.26,801.36,1.676679]
[1754862020752,0.83540449,802.43,801.36,1.676679]
[1754862020753,0.77655362,802.25,801.36,1.676679]